[Event "58th Akiba Rubinstein GM 2022"]
[Site "Polanica-Zdroj"]
[Date "2022.08.20"]
[Round "8.1"]
[White "Nasuta, Grzegorz"]
[Black "Mastrovasilis, Dimitrios"]
[Result "0-1"]
[ECO "C82"]
[WhiteElo "2500"]
[BlackElo "2597"]
[Annotator "TA"]
[PlyCount "80"]
[EventDate "2022.08.13"]
[EventCountry "POL"]
[SourceTitle "playchess.com"]
[Source "ChessBase"]
[SourceQuality "1"]
[TimeControl "40/5400+30:1800+30"]

{[%evp 26,80,50,41,35,48,60,47,41,0,0,6,15,-21,-21,-47,-39,-43,-41,-41,-27,-45,-44,-49,-47,-31,-46,-83,-76,-66,-53,-58,-56,-58,-58,-81,0,-131,-138,-552,-552,-547,-526,-899,-900,-903,-900,-899,-899,-888,-871,-871,-816,-806,-788,-733,-708]} 1. e4 {[%emt 0:00:03]} e5 {[%emt 0:00:30]} 2. Nf3 {[%emt 0:00:14]} Nc6 {[%emt 0:00:12]} 3. Bb5 {[%emt 0:01:02]} a6 {[%emt 0:00:20]} 4. Ba4 {[%emt 0:00:07]} Nf6 {[%emt 0:00:10]} 5. O-O {[%emt 0:00:40]} Nxe4 {[%emt 0:00:17]} 6. d4 {[%emt 0:01:13]} b5 {[%emt 0:00:17]} 7. Bb3 {[%emt 0:00:04]} d5 {[%emt 0:00:08]} 8. dxe5 {[%emt 0:00:12]} Be6 {[%emt 0:00:08]} 9. c3 {[%emt 0:08:43]} Bc5 {[%emt 0:01:51]} 10. Nbd2 {[%emt 0:00:11]} O-O {[%emt 0:00:49]} 11. Bc2 {[%emt 0:00:09]} Bf5 {[%emt 0:00:19]} 12. Nb3 {[%emt 0:03:59]} Bg6 {[%emt 0:00:10]} 13. Nfd4 {[%emt 0:13:56]} Bxd4 {[%emt 0:00:19]} 14. Nxd4 {[%emt 0:14:22]} Nxd4 $5 {[%emt 0:00:41][%mdl 4] Exploring less charted territory. C82: Open Ruy Lopez: 9 c3 without 9...Be7.} 15. cxd4 {[%emt 0:00:08]} c5 $1 {[%emt 0:00:14]} 16. f3 {[%emt 0:09:53]} cxd4 {[%emt 0:00:46] [#] White is slightly better.} 17. fxe4 $146 {[%emt 0:19:14]} (17. Qxd4 $5 {[%cal Rf3e4]} Rc8 18. Bb3 $11 (18. fxe4 Rxc2 19. exd5 Rc4 $15)) ({Predecessor:} 17. Qxd4 Rc8 18. Bb3 Nc5 19. Be3 Bd3 20. Rfd1 Nxb3 21. axb3 Bc2 22. Rdc1 Bxb3 23. Rxa6 Rxc1+ 24. Bxc1 {½-½ (108) Dominguez Perez,L (2760)-Caruana,F (2800) Saint Louis 2021}) 17... Qb6 {[%emt 0:02:55]} 18. Kh1 {[%emt 0:08:46]} dxe4 {[%emt 0:00:26]} 19. Re1 {[%emt 0:09:54]} e3 {[%emt 0:19:32]} 20. Bxg6 {[%emt 0:00:06]} hxg6 {[%emt 0:00:46]} 21. b3 {[%emt 0:05:53]} Rad8 {[%emt 0:06:26]} 22. Qf3 {[%emt 0:00:22]} f6 {[%emt 0:08:50]} 23. Bxe3 {[%emt 0:01:31]} fxe5 {[%emt 0:01:31]} 24. Qg3 {[%emt 0:00:04] [#] Threatens to win with Bd2.} dxe3 {[%emt 0:00:19]} 25. Rxe3 {[%emt 0:00:04]} Qf6 {[%emt 0:11:21][%cal Of6f1]} 26. Rf3 {[%emt 0:01:39] Against Qf1+} Qd6 {[%emt 0:04:03]} 27. Re3 {[%emt 0:00:13]} Rf5 $40 {[%emt 0:06:05][%cal Bf8f5,Bf5g5,Bg5c5][%mdl 160] Black is up to no good.} 28. h3 {[%emt 0:00:45]} Qf6 {[%emt 0:01:37]} 29. Rae1 {[%emt 0:00:36][%cal Re3e5]} Rg5 {[%emt 0:03:12]} 30. Qh2 {[%emt 0:00:09][%cal Re3e5]} Re8 {[%emt 0:09:07] Black is more active.} (30... Rd2 $17 {Strongly threatening ...Qf2.} 31. Rxe5 Kh7 32. Rxg5 Qxg5) 31. g4 {[%emt 0:00:05] [#]} (31. Re4 $11 {remains equal.} Rf5 32. Qg3) 31... e4 $1 $17 {[%emt 0:01:18]} 32. Rxe4 $2 {[%emt 0:00:57][%mdl 8192] This move loses the game for White.} (32. Qg2 $17) 32... Rxe4 $19 {[%emt 0:05:09] Black is clearly winning.} ({Worse is} 32... Qf3+ 33. Qg2 Rxe4 34. Rxe4 $17) 33. Rxe4 $17 {[%emt 0:00:07][%mdl 4096] Endgame KQR-KQR} Rc5 {[%emt 0:04:22] ( -> ...Qf1+)} ({Stronger than} 33... Qf1+ 34. Qg1 Qxh3+ 35. Qh2 Qf1+ 36. Qg1 Qh3+ 37. Qh2 Qf1+ 38. Qg1 Qf3+ 39. Qg2 Qd1+ 40. Kh2 $17) 34. Re1 {[%emt 0:00:59] Against Qf1+} Rc3 {[%emt 0:00:38]} 35. Qg2 {[%emt 0:00:40]} Rf3 {[%emt 0:00:35]} 36. Kg1 {[%emt 0:00:51]} Qd4+ {[%emt 0:01:12]} 37. Kh1 {[%emt 0:00:01]} Qc3 {[%emt 0:00:40]} 38. Kh2 {[%emt 0:00:06]} Qc7+ {[%emt 0:01:22]} ({And not} 38... Qxe1 39. Qxf3 Qd2+ 40. Qg2 Qf4+ 41. Kg1 $11) 39. Kh1 {[%emt 0:00:01]} Qf4 {[%emt 0:00:09]} 40. Rg1 {[%emt 0:00:00]} Qe3 {[%emt 0:00:00] Weighted Error Value: White=0.64/Black=0.05 (flawless)} 0-1

[Event "58th Akiba Rubinstein GM 2022"]
[Site "Polanica-Zdroj"]
[Date "2022.08.20"]
[Round "8.2"]
[White "Plat, Vojtech"]
[Black "Bernadskiy, Vitaliy"]
[Result "1/2-1/2"]
[ECO "C92"]
[WhiteElo "2556"]
[BlackElo "2598"]
[Annotator "TA"]
[PlyCount "61"]
[EventDate "2022.08.13"]
[EventCountry "POL"]
[SourceTitle "playchess.com"]
[Source "ChessBase"]
[SourceQuality "1"]
[TimeControl "40/5400+30:1800+30"]

{[%evp 25,61,16,27,0,0,0,0,0,23,0,0,-4,-10,-10,-5,-6,-9,-10,-9,-6,-11,-9,-7,-8,-5,-9,-8,-11,0,0,0,0,0,0,0,0,0,0]} 1. e4 {[%emt 0:00:03]} e5 {[%emt 0:00:04]} 2. Nf3 {[%emt 0:00:06]} Nc6 {[%emt 0:00:06]} 3. Bb5 {[%emt 0:00:10]} a6 {[%emt 0:00:15]} 4. Ba4 {[%emt 0:00:48]} Nf6 {[%emt 0:00:10]} 5. O-O {[%emt 0:00:10]} Be7 {[%emt 0:00:13]} 6. Re1 {[%emt 0:00:09]} b5 {[%emt 0:00:07]} 7. Bb3 {[%emt 0:00:05]} d6 {[%emt 0:00:06]} 8. c3 {[%emt 0:00:07]} O-O {[%emt 0:00:10]} 9. h3 {[%emt 0:00:07]} Bb7 {[%emt 0:01:30]} 10. d4 {[%emt 0:00:16]} Re8 {[%emt 0:00:18]} 11. Ng5 {[%emt 0:00:11]} Rf8 {[%emt 0:00:04]} 12. Nf3 {[%emt 0:00:05]} h6 {[%emt 0:00:03]} 13. a4 {[%emt 0:01:56]} Re8 {[%emt 0:00:39]} 14. axb5 {[%emt 0:06:10] C92: Closed Ruy Lopez: 9...Be6, Karpov and Flohr-Zaitsev Variations.} axb5 {[%emt 0:00:09]} 15. Rxa8 {[%emt 0:00:04]} Qxa8 {[%emt 0:01:27]} 16. Na3 {[%emt 0:00:20]} exd4 {[%emt 0:03:23] [#]} 17. Nxb5 $146 {[%emt 0:00:14]} ({Predecessor:} 17. cxd4 Na5 18. Bc2 Bxe4 19. Bxe4 Nxe4 20. Nxb5 Qc6 21. Nc3 Nxc3 22. bxc3 Bf8 23. Rxe8 Qxe8 24. Be3 Nc4 {½-½ (22) Reyes Perez,R (1909)-Osorio Colon,R (2019) Santiago de Cuba 2018}) 17... Bd8 {[%emt 0:00:26] The position is equal.} 18. Nfxd4 {[%emt 0:01:59]} Nxd4 {[%emt 0:01:46]} 19. Nxd4 {[%emt 0:00:18]} Rxe4 {[%emt 0:00:18]} 20. Rxe4 {[%emt 0:00:09]} Bxe4 {[%emt 0:00:11]} 21. f3 {[%emt 0:00:06]} Bg6 {[%emt 0:02:51]} 22. Bc2 {[%emt 0:00:42]} Bxc2 {[%emt 0:00:45]} 23. Qxc2 {[%emt 0:00:05]} Nd7 {[%emt 0:00:55]} 24. Be3 {[%emt 0:00:26]} Bf6 {[%emt 0:00:17]} 25. Ne2 {[%emt 0:00:25]} Nf8 {[%emt 0:02:29]} 26. Bd4 {[%emt 0:00:33]} Bxd4+ {[%emt 0:00:39]} 27. Nxd4 {[%emt 0:00:07]} Ne6 {[%emt 0:00:39]} 28. Nxe6 {[%emt 0:00:04]} fxe6 {[%emt 0:00:05]} 29. b4 {[%emt 0:00:04]} Kf7 {[%emt 0:00:48]} 30. Qd3 {[%emt 0:00:12]} Qa1+ {[%emt 0:01:04]} 31. Kf2 {[%emt 0:00:06] A balanced but interesting game.  Weighted Error Value: White=0.04 (flawless) /Black=0.04 (flawless)} 1/2-1/2

[Event "58th Akiba Rubinstein GM 2022"]
[Site "Polanica-Zdroj"]
[Date "2022.08.20"]
[Round "8.3"]
[White "Tazbir, Marcin"]
[Black "Donchenko, Alexander"]
[Result "0-1"]
[ECO "A13"]
[WhiteElo "2511"]
[BlackElo "2630"]
[Annotator "TA"]
[PlyCount "72"]
[EventDate "2022.08.13"]
[EventCountry "POL"]
[SourceTitle "playchess.com"]
[Source "ChessBase"]
[SourceQuality "1"]
[TimeControl "40/5400+30:1800+30"]

{[%evp 9,72,-4,0,0,0,-4,-10,-25,0,-25,-40,-53,-37,-45,0,-51,-66,-62,-56,-68,-53,-60,-52,-51,-43,-32,-47,-55,-52,-66,-7,-28,-26,-68,-50,-58,-31,-36,-23,-25,-34,-31,-41,-25,-29,-305,-318,-337,-327,-333,-264,-227,-256,-239,-225,-441,-398,-990,-985,-756,-951,-936,-887,-4132,-1747]} 1. c4 {[%emt 0:00:03]} e6 {[%emt 0:00:26]} 2. g3 {[%emt 0:00:06]} d5 {[%emt 0:00:08]} 3. Bg2 {[%emt 0:00:06]} d4 {[%emt 0:00:17]} 4. Nf3 {[%emt 0:00:20]} c5 {[%emt 0:00:14]} 5. b4 {[%emt 0:01:04]} cxb4 {[%emt 0:02:41]} 6. a3 {[%emt 0:00:20] A13: English Opening: 1...e6.} Nc6 {[%emt 0:01:25]} 7. O-O {[%emt 0:00:10]} a5 {[%emt 0:03:09]} 8. d3 {[%emt 0:04:21] The position is equal.} Nf6 {[%emt 0:03:18]} 9. axb4 {[%emt 0:05:30]} Bxb4 {[%emt 0:00:37]} 10. Na3 {[%emt 0:00:05][%cal Bb1a3,Ba3c2,Bc2e3][%mdl 32]} e5 {[%emt 0:04:58] [#]} 11. Nc2 $146 {[%emt 0:04:56]} ({Predecessor:} 11. Nb5 O-O 12. Ba3 Bg4 13. h3 {½-½ (13) Cruz Estrada,F (2316)-Arpan,D (2173) Badalona 2022}) 11... Be7 {[%emt 0:07:16]} 12. Ba3 {[%emt 0:04:23]} (12. e3 $11) 12... O-O $15 {[%emt 0:00:48]} 13. e3 {[%emt 0:08:15]} dxe3 {[%emt 0:06:33]} 14. Nxe3 {[%emt 0:00:27]} Bxa3 {[%emt 0:01:20]} 15. Rxa3 {[%emt 0:00:10]} Qd6 {[%emt 0:00:17]} 16. Qa1 {[%emt 0:03:01]} Ng4 {[%emt 0:15:03]} 17. Nd5 {[%emt 0:03:58]} Be6 {[%emt 0:00:31]} 18. Ng5 {[%emt 0:14:46][%cal Oc4c5]} Bxd5 {[%emt 0:09:22]} 19. Bxd5 {[%emt 0:01:49]} Nf6 {[%emt 0:00:33]} (19... b6 $15) 20. Ne4 {[%emt 0:06:24]} Nxe4 {[%emt 0:00:21]} 21. dxe4 {[%emt 0:00:13]} b6 {[%emt 0:01:30]} 22. Rd1 {[%emt 0:08:18][%cal Od5f7]} Qc5 {[%emt 0:01:08]} 23. Rb3 $1 {[%emt 0:00:51] [#] Threatens to win with Rb5.} Nd4 {[%emt 0:03:49] Against Rb5} 24. Rxd4 {[%emt 0:01:28]} Qxd4 {[%emt 0:01:55]} 25. Qxd4 {[%emt 0:00:21]} exd4 {[%emt 0:00:03]} 26. Bxa8 {[%emt 0:00:07]} Rxa8 {[%emt 0:00:05]} 27. Rxb6 $2 $11 {[%emt 0:00:08][%mdl 12288] Endgame KR-KR. Now White is beyond hope.} (27. Kf1 $1 $11) 27... a4 $19 {[%emt 0:00:15][%cal Ba5a4,Ba4a3,Ba3a2][%mdl 32]} 28. Kf1 {[%emt 0:00:40]} a3 {[%emt 0:01:04] [#] Inhibits Rb2. ( -> ...a2)} 29. Rb1 {[%emt 0:00:04]} a2 {[%emt 0:00:35]} 30. Ra1 {[%emt 0:00:04]} Kf8 {[%emt 0:00:45] Hoping for ...Ke7.} 31. Ke2 {[%emt 0:00:04]} Ra3 {[%emt 0:00:18] ...Ke7 is the strong threat.} 32. f4 $2 {[%emt 0:01:39]} (32. Kd2 Ke7 33. c5) 32... Ke7 {[%emt 0:02:42]} 33. Kd2 $2 {[%emt 0:01:02]} (33. e5 Ke6 34. Kd1) 33... Kd6 {[%emt 0:02:02] White must now prevent ...Kc5. Black is clearly winning.} 34. Kc2 {[%emt 0:00:14]} Kc5 {[%emt 0:01:16]} 35. Kb2 {[%emt 0:00:54]} Re3 {[%emt 0:05:27] aiming for ...Re2+.} 36. Rxa2 {[%emt 0:02:41]} Re2+ {[%emt 0:01:45] Weighted Error Value: White=0.75/Black=0.09 (flawless)} 0-1

[Event "58th Akiba Rubinstein GM 2022"]
[Site "Polanica-Zdroj"]
[Date "2022.08.20"]
[Round "8.4"]
[White "Teclaf, Pawel"]
[Black "Sumets, Andrey"]
[Result "1/2-1/2"]
[ECO "C07"]
[WhiteElo "2550"]
[BlackElo "2547"]
[Annotator "TA"]
[PlyCount "65"]
[EventDate "2022.08.13"]
[EventCountry "POL"]
[SourceTitle "playchess.com"]
[Source "ChessBase"]
[SourceQuality "1"]
[TimeControl "40/5400+30:1800+30"]

{[%evp 14,65,15,3,18,10,8,6,9,18,14,19,13,5,0,7,0,0,0,0,0,0,0,0,0,0,0,0,0,0,0,0,10,0,0,0,0,0,12,0,0,0,0,0,0,0,0,0,0,0,0,0,-19,0]} 1. e4 {[%emt 0:00:03]} e6 {[%emt 0:00:05]} 2. d4 {[%emt 0:00:07]} d5 {[%emt 0:00:04]} 3. Nd2 {[%emt 0:00:03]} c5 {[%emt 0:00:06]} 4. Ngf3 {[%emt 0:00:03]} cxd4 {[%emt 0:00:06]} 5. Nxd4 {[%emt 0:00:09]} Nc6 {[%emt 0:00:09]} 6. Bb5 {[%emt 0:00:04]} Bd7 {[%emt 0:00:05]} 7. Nxc6 {[%emt 0:00:05]} bxc6 {[%emt 0:00:03]} 8. Bd3 {[%emt 0:00:05] The position is equal.} Bd6 {[%emt 0:00:07] C07: French Tarrasch: 3...c5, 4 Ngf3 and 4 exd5 Qxd5.} 9. Qe2 {[%emt 0:00:07]} e5 $1 {[%emt 0:00:27][%mdl 4] is now more promising than 9...Ne7.} 10. exd5 {[%emt 0:10:13]} cxd5 {[%emt 0:00:06]} 11. c4 {[%emt 0:00:02]} Ne7 {[%emt 0:00:11][%cal Bg8e7,Be7d5,Bd5f4][%mdl 32]} 12. cxd5 {[%emt 0:00:43]} Nxd5 {[%emt 0:00:06]} 13. Be4 {[%emt 0:03:29]} Nf4 {[%emt 0:11:26]} 14. Qa6 {[%emt 0:00:09]} Bc5 {[%emt 0:28:23] [#] And now ...Rb8 would win.} 15. O-O $1 {[%emt 0:08:16]} Rb8 {[%emt 0:04:23] White must now prevent ...0-0.} 16. Nb3 {[%emt 0:04:15]} Bb6 {[%emt 0:00:12]} 17. Bxf4 {[%emt 0:04:59]} exf4 {[%emt 0:00:06]} 18. Rad1 {[%emt 0:05:14] [#] Bf5 is the strong threat.} O-O {[%emt 0:12:47][%cal Od8f6]} 19. Bxh7+ {[%emt 0:05:54]} Kxh7 {[%emt 0:00:09]} 20. Qd3+ {[%emt 0:00:03]} Kg8 {[%emt 0:00:06]} 21. Qxd7 {[%emt 0:00:06]} Qf6 {[%emt 0:00:05]} 22. Qd6 {[%emt 0:05:12] [#]} Qh4 $146 {[%emt 0:11:27] Threatens to win with ...Rfd8.} ({Predecessor:} 22... Qxd6 23. Rxd6 a5 {½-½ (23) Ragger,M (2643)-Nihal,S (2654) Chartres 2022}) 23. Qd3 {[%emt 0:10:40]} Rfd8 {[%emt 0:02:41]} 24. Qf3 {[%emt 0:03:24]} Qf6 {[%emt 0:17:16]} 25. Qc3 {[%emt 0:08:11]} Qe6 {[%emt 0:00:46]} 26. Rxd8+ {[%emt 0:09:44]} Rxd8 {[%emt 0:00:05]} 27. Re1 {[%emt 0:00:08] Prevents Qe2.} Qd7 {[%emt 0:02:29]} 28. Qf3 {[%emt 0:08:59]} Qa4 {[%emt 0:00:14]} 29. a3 {[%emt 0:01:34]} Qb5 {[%emt 0:00:31]} 30. Rd1 $1 {[%emt 0:02:54] Against Rd3} Re8 {[%emt 0:00:17]} 31. h3 {[%emt 0:02:12]} a5 {[%emt 0:01:18][%cal Ba7a5,Ba5a4][%mdl 32]} 32. Kh2 {[%emt 0:05:18]} a4 33. Nd2 {An even fight not without its subleties.  Weighted Error Value: White=0.01 (flawless) /Black=0.02 (flawless)} 1/2-1/2

[Event "58th Akiba Rubinstein GM 2022"]
[Site "Polanica-Zdroj"]
[Date "2022.08.20"]
[Round "8.5"]
[White "Kempinski, Robert"]
[Black "Tomczak, Jacek"]
[Result "1/2-1/2"]
[ECO "D91"]
[WhiteElo "2558"]
[BlackElo "2596"]
[Annotator "TA"]
[PlyCount "75"]
[EventDate "2022.08.13"]
[EventCountry "POL"]
[SourceTitle "playchess.com"]
[Source "ChessBase"]
[SourceQuality "1"]
[TimeControl "40/5400+30:1800+30"]

{[%evp 13,75,13,25,19,27,34,33,35,52,57,59,30,32,39,36,29,33,47,47,47,47,36,25,52,43,42,79,39,63,20,27,28,20,22,28,12,12,12,12,12,13,13,13,13,13,14,14,1,1,2,15,0,15,0,0,0,0,0,0,0,2,4,5,0]} 1. d4 {[%emt 0:00:04] CB} Nf6 {[%emt 0:00:10]} 2. Nf3 {[%emt 0:00:07]} g6 {[%emt 0:00:22]} 3. c4 {[%emt 0:00:38]} Bg7 {[%emt 0:00:15]} 4. Nc3 {[%emt 0:00:34]} d5 {[%emt 0:00:27]} 5. Bg5 {[%emt 0:00:56]} Ne4 {[%emt 0:01:42]} 6. Bf4 {[%emt 0:00:24]} Nxc3 {[%emt 0:05:02]} 7. bxc3 {[%emt 0:00:38]} dxc4 {[%emt 0:00:06][%cal Oc7c5]} 8. e3 {[%emt 0:01:43][%cal Be2e3,Be3e4][%mdl 32] D91: Grünfeld: 4 Nf3 Bg7 5 Bg5.} b5 {[%emt 0:01:02] has lost popularity (8...Be6).} 9. a4 {[%emt 0:02:20]} c6 {[%emt 0:01:51]} 10. Qb1 $1 {[%emt 0:00:45] White is slightly better.} Bf5 {[%emt 0:23:05]} 11. e4 {[%emt 0:01:55]} Bd7 {[%emt 0:01:04] [#]} 12. Bxc4 $1 {[%emt 0:02:33]} bxc4 {[%emt 0:01:39]} 13. Qb7 {[%emt 0:00:09]} Na6 {[%emt 0:00:27]} 14. Qxa6 {[%emt 0:00:37]} c5 $1 {[%emt 0:00:32]} 15. Qxc4 {[%emt 0:00:45]} cxd4 {[%emt 0:01:40]} 16. cxd4 {[%emt 0:00:19]} Rc8 {[%emt 0:07:13] [#]} 17. Qb4 $146 {[%emt 0:03:34]} ({Predecessor:} 17. Qa6 Be6 18. Qb5+ Bd7 19. Qa6 Be6 20. Qb5+ Bd7 21. Qd3 Be6 22. Qb5+ {½-½ (22) Andreikin,D (2722)-Vachier Lagrave,M (2757) Tashkent 2014 CBM 163 [CB]}) 17... a5 {[%emt 0:24:23]} 18. Qd2 {[%emt 0:12:13]} Bc6 {[%emt 0:05:35]} 19. Qe3 {[%emt 0:13:47]} O-O {[%emt 0:01:46]} 20. Bh6 {[%emt 0:03:51]} f5 {[%emt 0:06:08]} 21. Bxg7 {[%emt 0:05:14]} Kxg7 {[%emt 0:00:04]} 22. Ng5 {[%emt 0:08:54]} Qd6 {[%emt 0:00:52] Inhibits Ne6+.} 23. O-O {[%emt 0:01:52]} Bxe4 {[%emt 0:10:03]} 24. Nxe4 {[%emt 0:02:10]} fxe4 {[%emt 0:00:05] The position is equal.} 25. Qxe4 {[%emt 0:00:38]} Rc4 {[%emt 0:03:17]} 26. Rfe1 {[%emt 0:11:56]} Rxd4 {[%emt 0:00:17]} 27. Qxe7+ {[%emt 0:00:09]} Qxe7 {[%emt 0:00:05]} 28. Rxe7+ $11 {[%emt 0:00:05][%mdl 4096] Endgame KRR-KRR} Rf7 $1 {[%emt 0:00:06]} 29. Re5 {[%emt 0:00:53]} Rf5 $1 {[%emt 0:00:49]} 30. Rxf5 {[%emt 0:00:11]} gxf5 {[%emt 0:00:04] KR-KR} 31. Kf1 {[%emt 0:00:19]} Kf6 {[%emt 0:00:23]} 32. Ke2 {[%emt 0:01:16]} h5 {[%emt 0:00:34][%cal Bh7h5,Bh5h4][%mdl 32]} 33. g3 {[%emt 0:02:12]} h4 {[%emt 0:00:58]} 34. h3 {[%emt 0:00:31]} Rb4 {[%emt 0:03:33]} 35. Ra3 {[%emt 0:00:13]} Kg6 {[%emt 0:00:38]} 36. Kf3 {[%emt 0:01:38]} Kg5 {[%emt 0:00:21]} 37. Kg2 {[%emt 0:01:20]} Rc4 {[%emt 0:01:05]} 38. Kf3 {[%emt 0:05:23] Weighted Error Value: White=0.07 (flawless) /Black=0.03 (flawless)} 1/2-1/2

[Event "58th Akiba Rubinstein GM 2022"]
[Site "Polanica-Zdroj"]
[Date "2022.08.21"]
[Round "9.2"]
[White "Tomczak, Jacek"]
[Black "Nasuta, Grzegorz"]
[Result "0-1"]
[ECO "C67"]
[WhiteElo "2596"]
[BlackElo "2500"]
[Annotator "TA"]
[PlyCount "89"]
[EventDate "2022.08.13"]
[EventCountry "POL"]
[SourceTitle "playchess.com"]
[Source "ChessBase"]
[SourceQuality "1"]
[TimeControl "40/5400+30:1800+30"]

{[%evp 16,89,0,0,0,0,0,0,24,0,26,27,29,22,38,18,16,0,25,0,0,-41,-33,-41,-16,-32,-28,-60,-63,-82,-86,-97,-58,-66,-17,-230,-259,-235,-236,-338,-288,-296,-299,-395,-424,-400,-355,-425,-436,-433,-432,-422,-408,-411,-254,-255,-258,-375,-356,-350,-314,-402,-397,-402,-401,-427,-431,-1003,-990,-954,-922,-1135,-1114,-971,-917,-29983]} 1. e4 {[%emt 0:00:02] Vitiugov,Nikita} e5 {[%emt 0:00:05]} 2. Nf3 {[%emt 0:00:08]} Nc6 {[%emt 0:00:06]} 3. Bb5 {[%emt 0:00:11]} Nf6 {[%emt 0:00:06]} 4. O-O {[%emt 0:00:45]} Nxe4 {[%emt 0:00:13]} 5. d4 {[%emt 0:00:25]} Nd6 {[%emt 0:00:12]} 6. dxe5 {[%emt 0:00:27]} Nxb5 {[%emt 0:00:18]} 7. a4 {[%emt 0:00:14]} Nbd4 {[%emt 0:00:16]} 8. Nxd4 {[%emt 0:00:09]} Nxd4 {[%emt 0:00:08] 8...d5 might become the main line.} 9. Qxd4 {[%emt 0:00:05]} d5 $1 {[%emt 0:00:10] C67: Ruy Lopez: Berlin Defence: 4 0-0 Nxe4.} 10. Qd3 {[%emt 0:00:14]} c6 {[%emt 0:00:06]} 11. a5 {[%emt 0:00:58]} Be6 {[%emt 0:00:26] The position is equal.} 12. Nc3 {[%emt 0:10:39][%cal Bb1c3,Bc3e2,Be2d4][%mdl 32] [#]} Qc8 $146 {[%emt 0:00:10]} ({Predecessor:} 12... Qd7 13. Ne2 Bf5 14. Qc3 Be7 15. Bh6 d4 16. Nxd4 gxh6 17. e6 Bxe6 18. Nxe6 Rg8 {1-0 (30) Vitiugov,N (2726)-Harikrishna,P (2730) Prague 2019 CBM 189 [Vitiugov,Nikita]}) 13. Ne2 {[%emt 0:05:45]} Bf5 {[%emt 0:00:11]} 14. Qb3 {[%emt 0:00:37]} Bc5 {[%emt 0:31:25]} 15. Qc3 {[%emt 0:27:07]} (15. Be3 $5 {[%cal Re3c5]} Be7 16. f4 $14) 15... Be7 {[%emt 0:00:31][%cal Bc5e7,Be7d6,Bd6e5][%mdl 32]} 16. Nd4 {[%emt 0:01:30]} Bg6 {[%emt 0:12:28]} 17. b4 {[%emt 0:06:07][%cal Oa5a6]} (17. a6 $5) 17... O-O {[%emt 0:05:22]} 18. Ba3 {[%emt 0:11:16][%cal Oa5a6]} f6 {[%emt 0:11:14]} 19. e6 {[%emt 0:00:48]} Bd6 {[%emt 0:00:56]} 20. Rae1 {[%emt 0:09:30]} Qc7 {[%emt 0:02:31]} 21. Qh3 {[%emt 0:02:53][%cal Of2f4]} Rfe8 {[%emt 0:00:22]} 22. Kh1 {[%emt 0:02:54]} b6 {[%emt 0:07:42]} 23. a6 {[%emt 0:01:32]} Be5 {[%emt 0:05:11] A strong pair of Bishops.} 24. Nf5 {[%emt 0:03:20]} Qc8 {[%emt 0:02:09]} (24... Rad8 $15) 25. f4 $2 {[%emt 0:01:01] This costs White the game.} (25. Nxg7 $1 $11 {and White stays safe.} Kxg7 26. f4 Qxe6 27. Qh4) 25... Bxf5 $19 {[%emt 0:00:38]} 26. Qxf5 {[%emt 0:00:04]} Bc3 {[%emt 0:00:05]} 27. b5 {[%emt 0:05:24]} (27. Rb1 $142 Qxa6 28. Rfd1) 27... Bxe1 {[%emt 0:02:54]} ({Not} 27... cxb5 $2 28. Rb1 $19) 28. Rxe1 {[%emt 0:00:05]} cxb5 {[%emt 0:00:05] [#] Strongly threatening ...Qc3.} 29. Bb2 {[%emt 0:03:07] Against Qc3} Qc5 {[%emt 0:09:00]} 30. e7 {[%emt 0:01:49]} Qd6 {[%emt 0:02:18]} 31. Re6 {[%emt 0:03:04]} Qb4 {[%emt 0:00:17]} 32. Qxd5 {[%emt 0:00:32] Hoping for Re4+.} Qc4 {[%emt 0:00:09]} (32... Qxb2 {gets mated.} 33. Re1+ Kh8 {[#]} 34. Qxa8 $3 {[%mdl 512]} h6 35. Qxe8+ Kh7 36. f5 Qa2 37. Qg6+ Kh8 38. e8=Q+ Qg8 39. Qxg8+ Kxg8 40. Re8#) 33. Qxc4 {[%emt 0:02:26]} bxc4 {[%emt 0:00:01][%mdl 4096] Endgame KRR-KRB} 34. Ba3 {[%emt 0:00:04]} Rac8 {[%emt 0:00:56]} 35. c3 {[%emt 0:00:55]} Rc7 {[%emt 0:00:22]} 36. Kg1 {[%emt 0:00:15]} (36. f5 {was worth a try.}) 36... Kf7 {[%emt 0:00:33]} 37. f5 {[%emt 0:00:31]} Rec8 {[%emt 0:02:33]} 38. Kf2 {[%emt 0:01:04]} Rd7 {[%emt 0:00:15]} 39. Bb4 {[%emt 0:01:30]} Rd5 {[%emt 0:02:26]} 40. g4 {[%emt 0:00:00]} g6 {[%emt 0:00:00] Black is clearly winning.} 41. Rd6 {[%emt 0:08:27]} (41. Re4 $142 gxf5 42. gxf5) 41... Rxd6 {[%emt 0:03:12]} 42. Bxd6 {[%emt 0:00:05]} gxf5 {[%emt 0:00:13]} 43. gxf5 {[%emt 0:00:05]} b5 {[%emt 0:01:26]} 44. Ke3 {[%emt 0:00:06]} Rc6 {[%emt 0:00:05][%csl LRa6,LRd6]} 45. Kd4 {Weighted Error Value: White=0.43/Black=0.15 (very precise)} 0-1